[Event "*** Titled Tuesday Blitz"]
[Site "Chess.com"]
[Date "2018.04.03"]
[Round "7"]
[White "Zufi1811"]
[Black "Yaacovn"]
[Result "1-0"]
[WhiteElo "2466"]
[BlackElo "2636"]
[TimeControl "180+2"]
[EndTime "14:31:05 PDT"]
[Termination "Zufi1811 won by resignation"]

1. e4 {[%clk 0:03:01.9]} 1... c6 {[%clk 0:02:48.1]} 2. d4 {[%clk 0:03:02.2]}
2... d5 {[%clk 0:02:50]} 3. e5 {[%clk 0:03:03.2]} 3... Bf5 {[%clk 0:02:50.4]} 4.
Nf3 {[%clk 0:03:04.5]} 4... e6 {[%clk 0:02:51.7]} 5. Be2 {[%clk 0:03:05.9]} 5...
Ne7 {[%clk 0:02:52.7]} 6. O-O {[%clk 0:03:06.2]} 6... Bg6 {[%clk 0:02:54.2]} 7.
Nh4 {[%clk 0:03:04.7]} 7... Nf5 {[%clk 0:02:55.1]} 8. Nxf5 {[%clk 0:02:59.1]}
8... Bxf5 {[%clk 0:02:56.1]} 9. Nd2 {[%clk 0:02:49.8]} 9... c5 {[%clk
0:02:56.4]} 10. c3 {[%clk 0:02:50.1]} 10... Nc6 {[%clk 0:02:57.7]} 11. Nf3
{[%clk 0:02:29.2]} 11... Qb6 {[%clk 0:02:58]} 12. dxc5 {[%clk 0:02:28.4]} 12...
Bxc5 {[%clk 0:02:58.1]} 13. b4 {[%clk 0:02:29.5]} 13... Be7 {[%clk 0:02:58]} 14.
b5 {[%clk 0:02:28.4]} 14... Na5 {[%clk 0:02:54.1]} 15. Nd4 {[%clk 0:02:28.4]}
15... Bg6 {[%clk 0:02:53.4]} 16. Be3 {[%clk 0:02:25.3]} 16... Bc5 {[%clk
0:02:48.5]} 17. f4 {[%clk 0:02:22.9]} 17... O-O {[%clk 0:02:44.2]} 18. Kh1
{[%clk 0:02:23.3]} 18... Nc4 {[%clk 0:02:38.8]} 19. Bg1 {[%clk 0:02:17.1]} 19...
Be4 {[%clk 0:02:34.8]} 20. Bd3 {[%clk 0:02:10.7]} 20... Bxd4 {[%clk 0:02:27.8]}
21. Bxd4 {[%clk 0:02:10]} 21... Qxb5 {[%clk 0:02:26.7]} 22. Rb1 {[%clk
0:02:03.3]} 22... Qc6 {[%clk 0:02:22.9]} 23. Bxe4 {[%clk 0:02:00.3]} 23... dxe4
{[%clk 0:02:23.8]} 24. f5 {[%clk 0:01:54.6]} 24... exf5 {[%clk 0:02:25.2]} 25.
Rxf5 {[%clk 0:01:55.9]} 25... e3 {[%clk 0:02:26.7]} 26. Qg4 {[%clk 0:01:49.4]}
26... Qg6 {[%clk 0:02:16.5]} 27. Qf4 {[%clk 0:01:46.1]} 27... Rfe8 {[%clk
0:01:15.7]} 28. Re1 {[%clk 0:01:45.7]} 28... h6 {[%clk 0:01:07.6]} 29. h4 {[%clk
0:01:45.6]} 29... Qe6 {[%clk 0:01:03.9]} 30. h5 {[%clk 0:01:45.9]} 30... Rac8
{[%clk 0:01:01.6]} 31. g4 {[%clk 0:01:44.6]} 31... Nb2 {[%clk 0:00:34.5]} 32.
Rxe3 {[%clk 0:01:43.2]} 32... Qxa2 {[%clk 0:00:29.3]} 33. g5 {[%clk 0:01:44.1]}
33... Nc4 {[%clk 0:00:22.9]} 34. Rg3 {[%clk 0:01:43.2]} 34... Qb1+ {[%clk
0:00:18.9]} 35. Kh2 {[%clk 0:01:43.5]} 35... Qc2+ {[%clk 0:00:18.8]} 36. Rg2
{[%clk 0:01:43.9]} 36... Qd3 {[%clk 0:00:16.1]} 37. gxh6 {[%clk 0:01:43.8]}
37... Rc5 {[%clk 0:00:13]} 38. Bxc5 {[%clk 0:01:31.9]} 1-0

[Event "*** Titled Tuesday Blitz"]
[Site "Chess.com"]
[Date "2018.04.03"]
[Round "7"]
[White "1random"]
[Black "GasconJR"]
[Result "1-0"]
[WhiteElo "2201"]
[BlackElo "2324"]
[TimeControl "180+2"]
[EndTime "14:31:07 PDT"]
[Termination "1random won by resignation"]

1. Nf3 {[%clk 0:03:01.2]} 1... Nf6 {[%clk 0:03:00.5]} 2. c4 {[%clk 0:02:57.8]}
2... e6 {[%clk 0:03:01.6]} 3. Nc3 {[%clk 0:02:53.8]} 3... Bb4 {[%clk 0:02:42]}
4. Qc2 {[%clk 0:02:54.5]} 4... O-O {[%clk 0:02:32.3]} 5. g4 {[%clk 0:02:55.1]}
5... Nxg4 {[%clk 0:02:24.2]} 6. Rg1 {[%clk 0:02:51.5]} 6... f5 {[%clk
0:02:25.1]} 7. a3 {[%clk 0:02:40.1]} 7... Be7 {[%clk 0:02:23.3]} 8. d4 {[%clk
0:02:16.7]} 8... Bh4 {[%clk 0:02:13.8]} 9. Nxh4 {[%clk 0:02:11.9]} 9... Qxh4
{[%clk 0:02:14.2]} 10. Rg3 {[%clk 0:01:55]} 10... Nxf2 {[%clk 0:02:04.3]} 11.
Bg5 {[%clk 0:01:33.1]} 11... Qxd4 {[%clk 0:01:18.9]} 12. e3 {[%clk 0:01:31.6]}
12... Qe5 {[%clk 0:00:59]} 13. Qxf2 {[%clk 0:01:29.7]} 13... d6 {[%clk
0:00:56.5]} 14. O-O-O {[%clk 0:01:06.6]} 14... Na6 {[%clk 0:00:46.6]} 15. Bf4
{[%clk 0:00:59.1]} 15... Qf6 {[%clk 0:00:47]} 16. Be2 {[%clk 0:00:58.8]} 16...
Bd7 {[%clk 0:00:46.9]} 17. Rdg1 {[%clk 0:00:58.7]} 17... Rf7 {[%clk 0:00:36.7]}
18. Bg5 {[%clk 0:00:58.5]} 18... Qe5 {[%clk 0:00:37.6]} 19. Bh6 {[%clk
0:00:58.3]} 19... g6 {[%clk 0:00:34.6]} 20. h4 {[%clk 0:00:58.7]} 20... Re7
{[%clk 0:00:04.6]} 21. h5 {[%clk 0:00:58]} 21... Be8 {[%clk 0:00:05.8]} 22. hxg6
{[%clk 0:00:48.8]} 22... hxg6 {[%clk 0:00:07.2]} 23. Bh5 {[%clk 0:00:49.1]}
23... Rh7 {[%clk 0:00:05.7]} 24. Bxg6 {[%clk 0:00:50.4]} 24... Bxg6 {[%clk
0:00:06.3]} 25. Rxg6+ {[%clk 0:00:52.3]} 25... Kf7 {[%clk 0:00:07.6]} 26. Rg7+
{[%clk 0:00:52.5]} 26... Rxg7 {[%clk 0:00:07.9]} 27. Rxg7+ {[%clk 0:00:54.4]}
27... Qxg7 {[%clk 0:00:05.7]} 28. Bxg7 {[%clk 0:00:54.8]} 28... Kxg7 {[%clk
0:00:07.6]} 29. Qg2+ {[%clk 0:00:55.9]} 29... Kf6 {[%clk 0:00:07.5]} 30. Qxb7
{[%clk 0:00:57.8]} 1-0

[Event "*** Titled Tuesday Blitz"]
[Site "Chess.com"]
[Date "2018.04.03"]
[Round "7"]
[White "temiksmozg"]
[Black "jefferyx"]
[Result "0-1"]
[WhiteElo "2548"]
[BlackElo "2766"]
[TimeControl "180+2"]
[EndTime "14:31:11 PDT"]
[Termination "jefferyx won by resignation"]

1. d4 {[%clk 0:02:55.6]} 1... Nf6 {[%clk 0:03:01.3]} 2. c4 {[%clk 0:02:57]} 2...
e6 {[%clk 0:03:02.1]} 3. Nf3 {[%clk 0:02:57.4]} 3... d5 {[%clk 0:03:03.1]} 4.
Nc3 {[%clk 0:02:58.1]} 4... c5 {[%clk 0:03:04.3]} 5. cxd5 {[%clk 0:02:58.9]}
5... Nxd5 {[%clk 0:03:06.2]} 6. e4 {[%clk 0:02:59.6]} 6... Nxc3 {[%clk
0:03:07.6]} 7. bxc3 {[%clk 0:03:01.4]} 7... cxd4 {[%clk 0:03:09.5]} 8. cxd4
{[%clk 0:03:03]} 8... Bb4+ {[%clk 0:03:11]} 9. Bd2 {[%clk 0:03:04.5]} 9... Bxd2+
{[%clk 0:03:12.7]} 10. Qxd2 {[%clk 0:03:06.4]} 10... O-O {[%clk 0:03:14.2]} 11.
Bc4 {[%clk 0:03:06.5]} 11... b6 {[%clk 0:03:13.2]} 12. O-O {[%clk 0:03:07.7]}
12... Bb7 {[%clk 0:03:12.8]} 13. Rfe1 {[%clk 0:03:09]} 13... Nd7 {[%clk
0:03:13.9]} 14. Rad1 {[%clk 0:03:07.3]} 14... Nf6 {[%clk 0:03:13.2]} 15. Bd3
{[%clk 0:02:53.3]} 15... h6 {[%clk 0:03:12.1]} 16. h3 {[%clk 0:02:53.6]} 16...
Rc8 {[%clk 0:03:12.3]} 17. Bb1 {[%clk 0:02:49.9]} 17... Qc7 {[%clk 0:03:04.7]}
18. Rc1 {[%clk 0:02:36.7]} 18... Qe7 {[%clk 0:03:05.4]} 19. Rcd1 {[%clk
0:02:30.1]} 19... Rfd8 {[%clk 0:02:57.5]} 20. Qd3 {[%clk 0:02:25.7]} 20... Qb4
{[%clk 0:02:48.9]} 21. Qe3 {[%clk 0:02:11.7]} 21... a5 {[%clk 0:02:12.2]} 22.
Qf4 {[%clk 0:02:04.7]} 22... a4 {[%clk 0:02:02]} 23. Kh2 {[%clk 0:01:35.8]}
23... Rc3 {[%clk 0:01:53.6]} 24. Re3 {[%clk 0:01:13.1]} 24... Rxe3 {[%clk
0:01:42.2]} 25. fxe3 {[%clk 0:01:13]} 25... Rc8 {[%clk 0:01:36.7]} 26. Ne5
{[%clk 0:01:05.2]} 26... Qb2 {[%clk 0:01:34.9]} 27. Nd3 {[%clk 0:00:50.4]} 27...
Qa3 {[%clk 0:01:34.7]} 28. Ne5 {[%clk 0:00:36.7]} 28... Rc1 {[%clk 0:01:35.2]}
29. Rxc1 {[%clk 0:00:23.8]} 29... Qxc1 {[%clk 0:01:37.1]} 30. Bd3 {[%clk
0:00:25.1]} 30... a3 {[%clk 0:01:26.8]} 31. d5 {[%clk 0:00:21.1]} 31... exd5
{[%clk 0:01:25.3]} 32. exd5 {[%clk 0:00:21.6]} 32... Bxd5 {[%clk 0:01:23.9]} 33.
Ng4 {[%clk 0:00:17.1]} 33... Ne8 {[%clk 0:01:19.1]} 34. Qb8 {[%clk 0:00:17.1]}
34... Qc7+ {[%clk 0:01:19.5]} 35. Qxc7 {[%clk 0:00:17.6]} 35... Nxc7 {[%clk
0:01:21.4]} 36. Bb1 {[%clk 0:00:18.7]} 36... Nb5 {[%clk 0:01:22.6]} 37. Ne5
{[%clk 0:00:19.5]} 37... Nc3 {[%clk 0:01:23.5]} 38. Bf5 {[%clk 0:00:17.3]} 38...
Bxa2 {[%clk 0:01:22.8]} 39. Nd3 {[%clk 0:00:17.2]} 39... Bc4 {[%clk 0:01:22.1]}
40. Nc1 {[%clk 0:00:18.5]} 40... a2 {[%clk 0:01:23.5]} 0-1

[Event "*** Titled Tuesday Blitz"]
[Site "Chess.com"]
[Date "2018.04.03"]
[Round "7"]
[White "Sebastian"]
[Black "Fighterman91"]
[Result "1-0"]
[WhiteElo "2796"]
[BlackElo "2580"]
[TimeControl "180+2"]
[EndTime "14:31:34 PDT"]
[Termination "Sebastian won by resignation"]

1. e4 {[%clk 0:03:01.9]} 1... c5 {[%clk 0:02:59.3]} 2. Nf3 {[%clk 0:03:03]} 2...
d6 {[%clk 0:02:57.4]} 3. d4 {[%clk 0:03:04.5]} 3... cxd4 {[%clk 0:02:58.6]} 4.
Nxd4 {[%clk 0:03:06.2]} 4... Nf6 {[%clk 0:03:00.2]} 5. Nc3 {[%clk 0:03:07.9]}
5... a6 {[%clk 0:03:01.7]} 6. Bg5 {[%clk 0:03:09.1]} 6... e6 {[%clk 0:03:01.3]}
7. f4 {[%clk 0:03:10.2]} 7... h6 {[%clk 0:03:02.3]} 8. Bh4 {[%clk 0:03:08.8]}
8... Qb6 {[%clk 0:03:03.7]} 9. a3 {[%clk 0:02:57.7]} 9... Nc6 {[%clk 0:02:42.4]}
10. Bf2 {[%clk 0:02:54.4]} 10... Qc7 {[%clk 0:02:34.3]} 11. Qf3 {[%clk
0:02:54.9]} 11... Bd7 {[%clk 0:02:33.2]} 12. O-O-O {[%clk 0:02:51.7]} 12... Be7
{[%clk 0:02:24.9]} 13. Be2 {[%clk 0:02:33.2]} 13... Rc8 {[%clk 0:02:04.5]} 14.
g4 {[%clk 0:02:27.7]} 14... g5 {[%clk 0:02:01.9]} 15. h4 {[%clk 0:01:52.1]}
15... gxf4 {[%clk 0:01:57.3]} 16. g5 {[%clk 0:01:53.2]} 16... Nh7 {[%clk
0:00:55.1]} 17. Kb1 {[%clk 0:01:38.5]} 17... Ne5 {[%clk 0:00:41.4]} 18. Qxf4
{[%clk 0:01:38.9]} 18... hxg5 {[%clk 0:00:40.4]} 19. hxg5 {[%clk 0:01:39.8]}
19... Bxg5 {[%clk 0:00:34.6]} 20. Rxh7 {[%clk 0:01:28.7]} 20... Bxf4 {[%clk
0:00:30.9]} 21. Rxh8+ {[%clk 0:01:29.4]} 21... Ke7 {[%clk 0:00:31.9]} 22. Bh4+
{[%clk 0:01:27.7]} 22... f6 {[%clk 0:00:31.3]} 23. Rh7+ {[%clk 0:01:09.5]} 23...
Nf7 {[%clk 0:00:17.6]} 24. Nf5+ {[%clk 0:00:59.9]} 24... Kf8 {[%clk 0:00:18]}
25. Bh5 {[%clk 0:00:56.2]} 25... Be8 {[%clk 0:00:07.9]} 26. Ng7 {[%clk
0:00:46.8]} 26... Qc4 {[%clk 0:00:04.3]} 27. Nxe8 {[%clk 0:00:43.7]} 27... Kxe8
{[%clk 0:00:02.9]} 28. Rxf7 {[%clk 0:00:31.6]} 28... Rc7 {[%clk 0:00:02.2]} 29.
Rxc7+ {[%clk 0:00:31.6]} 1-0

[Event "*** Titled Tuesday Blitz"]
[Site "Chess.com"]
[Date "2018.04.03"]
[Round "7"]
[White "TST2014"]
[Black "blitzcopter"]
[Result "1-0"]
[WhiteElo "2341"]
[BlackElo "2139"]
[TimeControl "180+2"]
[EndTime "14:31:44 PDT"]
[Termination "TST2014 won on time"]

1. d4 {[%clk 0:03:01.9]} 1... Nf6 {[%clk 0:03:00.8]} 2. c4 {[%clk 0:03:01.4]}
2... e6 {[%clk 0:03:02.1]} 3. Nf3 {[%clk 0:03:00.8]} 3... Bb4+ {[%clk
0:03:02.9]} 4. Nbd2 {[%clk 0:02:58.8]} 4... b6 {[%clk 0:03:03.3]} 5. g3 {[%clk
0:02:57.8]} 5... Bb7 {[%clk 0:03:02.3]} 6. Bg2 {[%clk 0:02:58.7]} 6... c5 {[%clk
0:03:03.7]} 7. a3 {[%clk 0:02:52.2]} 7... Bxd2+ {[%clk 0:03:03]} 8. Qxd2 {[%clk
0:02:53.7]} 8... cxd4 {[%clk 0:03:01.5]} 9. Qxd4 {[%clk 0:02:52]} 9... d6 {[%clk
0:03:01.9]} 10. b4 {[%clk 0:02:45.1]} 10... Qc7 {[%clk 0:03:01.9]} 11. Bb2
{[%clk 0:02:44.5]} 11... Nbd7 {[%clk 0:03:01.8]} 12. O-O {[%clk 0:02:37]} 12...
O-O {[%clk 0:03:01.5]} 13. Rfd1 {[%clk 0:02:37.6]} 13... Rac8 {[%clk 0:02:42.6]}
14. Rac1 {[%clk 0:02:34.4]} 14... Bxf3 {[%clk 0:02:18.1]} 15. exf3 {[%clk
0:02:11.8]} 15... Ne5 {[%clk 0:02:18.9]} 16. c5 {[%clk 0:02:12.8]} 16... bxc5
{[%clk 0:02:14]} 17. bxc5 {[%clk 0:02:13.2]} 17... Qb7 {[%clk 0:01:46.8]} 18. f4
{[%clk 0:01:52.1]} 18... Nf3+ {[%clk 0:01:18.8]} 19. Bxf3 {[%clk 0:01:52.4]}
19... Qxf3 {[%clk 0:01:20.7]} 20. cxd6 {[%clk 0:01:51.9]} 20... Rcd8 {[%clk
0:01:12.5]} 21. Rc7 {[%clk 0:01:43.6]} 21... Ne8 {[%clk 0:01:09.6]} 22. Rd3
{[%clk 0:01:35.6]} 22... Qe2 {[%clk 0:00:18.6]} 23. d7 {[%clk 0:01:24.6]} 23...
Qe1+ {[%clk 0:00:16.5]} 24. Kg2 {[%clk 0:01:24]} 24... e5 {[%clk 0:00:16.2]} 25.
Qxe5 {[%clk 0:00:50.3]} 25... Qxe5 {[%clk 0:00:11.6]} 26. Bxe5 {[%clk
0:00:50.3]} 26... Nxc7 {[%clk 0:00:11.6]} 27. Bxc7 {[%clk 0:00:50.9]} 27... f6
{[%clk 0:00:13]} 28. f5 {[%clk 0:00:43.5]} 28... Kf7 {[%clk 0:00:12.8]} 29. Bxd8
{[%clk 0:00:42.3]} 29... Rxd8 {[%clk 0:00:14.7]} 30. Kf3 {[%clk 0:00:41.8]}
30... Ke7 {[%clk 0:00:16.1]} 31. Ke4 {[%clk 0:00:43.1]} 31... h6 {[%clk
0:00:11.8]} 32. g4 {[%clk 0:00:43.4]} 32... Kf7 {[%clk 0:00:02.6]} 33. Rd5
{[%clk 0:00:41.1]} 1-0

[Event "*** Titled Tuesday Blitz"]
[Site "Chess.com"]
[Date "2018.04.03"]
[Round "7"]
[White "eldur16"]
[Black "Zhuu96"]
[Result "1-0"]
[WhiteElo "2560"]
[BlackElo "2726"]
[TimeControl "180+2"]
[EndTime "14:31:48 PDT"]
[Termination "eldur16 won by resignation"]

1. e4 {[%clk 0:03:01.9]} 1... c5 {[%clk 0:02:59.3]} 2. Ne2 {[%clk 0:03:01.8]}
2... d6 {[%clk 0:03:00.2]} 3. g3 {[%clk 0:03:02.4]} 3... Nf6 {[%clk 0:02:59.7]}
4. Bg2 {[%clk 0:03:03.1]} 4... g6 {[%clk 0:03:01.6]} 5. O-O {[%clk 0:03:03.4]}
5... Bg7 {[%clk 0:03:03.3]} 6. c3 {[%clk 0:03:04.4]} 6... O-O {[%clk 0:03:03.9]}
7. d4 {[%clk 0:03:05.3]} 7... Nc6 {[%clk 0:03:05.5]} 8. Na3 {[%clk 0:03:02.5]}
8... h5 {[%clk 0:02:56]} 9. h3 {[%clk 0:03:00.6]} 9... Bd7 {[%clk 0:02:48.3]}
10. Be3 {[%clk 0:02:59.7]} 10... cxd4 {[%clk 0:02:48.7]} 11. cxd4 {[%clk
0:02:59.9]} 11... a6 {[%clk 0:02:47.8]} 12. Qd2 {[%clk 0:02:58.2]} 12... b5
{[%clk 0:02:47.5]} 13. Rac1 {[%clk 0:02:52.6]} 13... Rc8 {[%clk 0:02:47.3]} 14.
Nc2 {[%clk 0:02:42.6]} 14... e6 {[%clk 0:02:37.4]} 15. b3 {[%clk 0:02:28.2]}
15... Ne7 {[%clk 0:02:38.1]} 16. Bg5 {[%clk 0:01:58.5]} 16... Bc6 {[%clk
0:02:37.8]} 17. Qd3 {[%clk 0:01:38]} 17... Qd7 {[%clk 0:02:35.9]} 18. Ne3 {[%clk
0:01:32.7]} 18... Qb7 {[%clk 0:02:28.1]} 19. d5 {[%clk 0:01:13.6]} 19... exd5
{[%clk 0:02:26.2]} 20. exd5 {[%clk 0:01:14.1]} 20... Bd7 {[%clk 0:02:19.4]} 21.
Nd4 {[%clk 0:01:10.3]} 21... Rfe8 {[%clk 0:02:19.7]} 22. Rxc8 {[%clk 0:01:02.4]}
22... Bxc8 {[%clk 0:02:14.2]} 23. Rc1 {[%clk 0:01:00.2]} 23... Nh7 {[%clk
0:02:13.4]} 24. Bf4 {[%clk 0:00:58.7]} 24... Qd7 {[%clk 0:02:05]} 25. h4 {[%clk
0:00:53.4]} 25... Bb7 {[%clk 0:02:02.3]} 26. Nc6 {[%clk 0:00:51.8]} 26... Nf6
{[%clk 0:02:03]} 27. Bg5 {[%clk 0:00:46.1]} 27... Nc8 {[%clk 0:01:58.7]} 28. a4
{[%clk 0:00:40.8]} 28... bxa4 {[%clk 0:01:58.4]} 29. bxa4 {[%clk 0:00:41.4]}
29... Nb6 {[%clk 0:01:58.7]} 30. Qb3 {[%clk 0:00:39.5]} 30... Nc8 {[%clk
0:01:55.4]} 31. Rb1 {[%clk 0:00:34.4]} 31... Ba8 {[%clk 0:01:54.4]} 32. Qc4
{[%clk 0:00:33.8]} 32... Nh7 {[%clk 0:01:50.8]} 33. Bf4 {[%clk 0:00:32.9]} 33...
a5 {[%clk 0:01:35.5]} 34. Nxa5 {[%clk 0:00:27.2]} 34... f6 {[%clk 0:01:32.2]}
35. Rb8 {[%clk 0:00:19.7]} 35... g5 {[%clk 0:01:27.8]} 36. Rxa8 {[%clk
0:00:18.6]} 36... gxf4 {[%clk 0:01:29.3]} 37. Qxf4 {[%clk 0:00:18.4]} 37... Nf8
{[%clk 0:01:30]} 38. Nc6 {[%clk 0:00:17.8]} 38... Qb7 {[%clk 0:01:28.6]} 39. Rb8
{[%clk 0:00:17.9]} 39... Qa6 {[%clk 0:01:29.9]} 40. Nf5 {[%clk 0:00:16.9]} 40...
Ng6 {[%clk 0:01:29.6]} 41. Qf3 {[%clk 0:00:14.8]} 1-0

[Event "*** Titled Tuesday Blitz"]
[Site "Chess.com"]
[Date "2018.04.03"]
[Round "7"]
[White "Rodalquilar"]
[Black "ckgchess"]
[Result "1-0"]
[WhiteElo "2461"]
[BlackElo "2506"]
[TimeControl "180+2"]
[EndTime "14:31:52 PDT"]
[Termination "Rodalquilar won on time"]

1. d4 {[%clk 0:03:01.9]} 1... Nf6 {[%clk 0:02:58.9]} 2. c4 {[%clk 0:03:02.5]}
2... g6 {[%clk 0:02:59]} 3. Nc3 {[%clk 0:03:03.1]} 3... Bg7 {[%clk 0:03:00.4]}
4. e4 {[%clk 0:03:04.2]} 4... d6 {[%clk 0:03:01.9]} 5. f4 {[%clk 0:03:05.6]}
5... O-O {[%clk 0:03:03.3]} 6. Nf3 {[%clk 0:03:07.2]} 6... c5 {[%clk 0:02:59.7]}
7. dxc5 {[%clk 0:03:09.1]} 7... Qa5 {[%clk 0:02:59.3]} 8. Bd3 {[%clk 0:03:10.7]}
8... Na6 {[%clk 0:02:57.1]} 9. O-O {[%clk 0:02:51.3]} 9... Nxc5 {[%clk
0:02:56.8]} 10. Bc2 {[%clk 0:02:52.6]} 10... Be6 {[%clk 0:02:30.6]} 11. Qe2
{[%clk 0:02:37.6]} 11... Qa6 {[%clk 0:02:31.5]} 12. Nb5 {[%clk 0:02:25]} 12...
Rac8 {[%clk 0:02:23.9]} 13. Nfd4 {[%clk 0:02:24.6]} 13... Bg4 {[%clk 0:01:46.4]}
14. Qe1 {[%clk 0:02:14]} 14... e5 {[%clk 0:01:19]} 15. Nf3 {[%clk 0:02:15.1]}
15... Rfe8 {[%clk 0:01:04.3]} 16. b4 {[%clk 0:01:31.9]} 16... Ncd7 {[%clk
0:00:21.4]} 17. fxe5 {[%clk 0:01:23.2]} 17... dxe5 {[%clk 0:00:16.1]} 18. Bb3
{[%clk 0:01:19.3]} 18... Be6 {[%clk 0:00:16.2]} 19. Qe2 {[%clk 0:01:12.7]} 19...
Nb6 {[%clk 0:00:11.7]} 20. Nd6 {[%clk 0:01:06.6]} 20... Nxc4 {[%clk 0:00:05.4]}
21. Nxe8 {[%clk 0:01:07.5]} 21... Nxe8 {[%clk 0:00:05]} 22. Kh1 {[%clk
0:00:59.6]} 22... h6 {[%clk 0:00:05.8]} 23. Nd2 {[%clk 0:01:00.7]} 23... Nxd2
{[%clk 0:00:05.8]} 24. Qxa6 {[%clk 0:01:01.7]} 24... bxa6 {[%clk 0:00:06.3]} 25.
Bxd2 {[%clk 0:00:59.3]} 25... Bxb3 {[%clk 0:00:05.8]} 26. axb3 {[%clk
0:01:00.6]} 26... Rc2 {[%clk 0:00:05]} 27. Be3 {[%clk 0:00:57.8]} 27... Rc3
{[%clk 0:00:06.3]} 28. Bc5 {[%clk 0:00:59]} 28... Rxb3 {[%clk 0:00:06.1]} 29.
Rxa6 {[%clk 0:01:00]} 29... Nc7 {[%clk 0:00:03.9]} 30. Rxa7 {[%clk 0:01:01]}
30... Ne6 {[%clk 0:00:04.7]} 31. Bd6 {[%clk 0:00:55]} 31... Re3 {[%clk 0:00:03]}
32. b5 {[%clk 0:00:53.4]} 32... Rxe4 {[%clk 0:00:02.8]} 33. b6 {[%clk
0:00:54.8]} 33... Re2 {[%clk 0:00:03]} 34. b7 {[%clk 0:00:55.1]} 34... Rb2
{[%clk 0:00:04.6]} 35. b8=Q+ {[%clk 0:00:56.7]} 35... Rxb8 {[%clk 0:00:06.5]}
36. Bxb8 {[%clk 0:00:58.2]} 36... e4 {[%clk 0:00:08]} 37. Raxf7 {[%clk
0:00:52.8]} 1-0

[Event "*** Titled Tuesday Blitz"]
[Site "Chess.com"]
[Date "2018.04.03"]
[Round "7"]
[White "Aariow"]
[Black "Albertu"]
[Result "1-0"]
[WhiteElo "2344"]
[BlackElo "2242"]
[TimeControl "180+2"]
[EndTime "14:31:53 PDT"]
[Termination "Aariow won by resignation"]

1. Nf3 {[%clk 0:03:01.9]} 1... Nf6 {[%clk 0:02:58.3]} 2. g3 {[%clk 0:03:03.2]}
2... g6 {[%clk 0:02:59.3]} 3. b3 {[%clk 0:03:04.3]} 3... Bg7 {[%clk 0:03:00.8]}
4. Bb2 {[%clk 0:03:06.2]} 4... O-O {[%clk 0:03:01.2]} 5. Bg2 {[%clk 0:03:07.5]}
5... d5 {[%clk 0:03:01.2]} 6. c4 {[%clk 0:03:08.3]} 6... c6 {[%clk 0:02:40.2]}
7. O-O {[%clk 0:03:08.9]} 7... Bf5 {[%clk 0:02:23.8]} 8. d3 {[%clk 0:03:08.6]}
8... Na6 {[%clk 0:02:16.8]} 9. a3 {[%clk 0:03:04.3]} 9... Nc7 {[%clk 0:02:00.2]}
10. Nbd2 {[%clk 0:03:03.3]} 10... Nd7 {[%clk 0:01:34.8]} 11. Bxg7 {[%clk
0:03:02.9]} 11... Kxg7 {[%clk 0:01:35.1]} 12. Qc2 {[%clk 0:03:03.3]} 12... e5
{[%clk 0:01:30.7]} 13. e4 {[%clk 0:03:04.4]} 13... dxe4 {[%clk 0:01:29]} 14.
dxe4 {[%clk 0:03:06.3]} 14... Be6 {[%clk 0:01:27.8]} 15. Rfd1 {[%clk 0:03:07.1]}
15... Qe7 {[%clk 0:01:27]} 16. Qc3 {[%clk 0:03:01.5]} 16... f6 {[%clk
0:01:23.9]} 17. Nf1 {[%clk 0:03:02]} 17... Rfd8 {[%clk 0:01:21.4]} 18. Ne3
{[%clk 0:03:02.4]} 18... a5 {[%clk 0:01:19.4]} 19. b4 {[%clk 0:02:57.4]} 19...
axb4 {[%clk 0:01:18.8]} 20. axb4 {[%clk 0:02:58]} 20... Nb6 {[%clk 0:01:10.2]}
21. Rxa8 {[%clk 0:02:55.3]} 21... Rxa8 {[%clk 0:01:08.6]} 22. h4 {[%clk
0:02:14.8]} 22... Bf7 {[%clk 0:01:06.2]} 23. h5 {[%clk 0:02:14.7]} 23... Ra4
{[%clk 0:01:06.3]} 24. Rb1 {[%clk 0:02:06.6]} 24... Na6 {[%clk 0:01:02.9]} 25.
c5 {[%clk 0:02:04.7]} 25... Nc8 {[%clk 0:00:52.3]} 26. Nh4 {[%clk 0:02:05.5]}
26... Qe6 {[%clk 0:00:43.4]} 27. Bf1 {[%clk 0:01:59.2]} 27... Nc7 {[%clk
0:00:42.6]} 28. Bc4 {[%clk 0:01:58.1]} 28... Qe8 {[%clk 0:00:43]} 29. h6+ {[%clk
0:01:44.9]} 29... Kxh6 {[%clk 0:00:34.2]} 30. Qb3 {[%clk 0:01:15.6]} 30... Bxc4
{[%clk 0:00:34.2]} 31. Qxa4 {[%clk 0:01:16.9]} 31... Bd3 {[%clk 0:00:35]} 32.
Re1 {[%clk 0:01:14.8]} 32... Nb5 {[%clk 0:00:22.3]} 33. Qd1 {[%clk 0:01:11.1]}
33... Qd7 {[%clk 0:00:16.4]} 34. Nhf5+ {[%clk 0:01:00.7]} 34... gxf5 {[%clk
0:00:16.5]} 35. Nxf5+ {[%clk 0:01:02.6]} 35... Kg6 {[%clk 0:00:17.4]} 36. Qg4+
{[%clk 0:01:01.3]} 36... Kf7 {[%clk 0:00:18.6]} 37. Qg7+ {[%clk 0:01:01.6]}
37... Ke6 {[%clk 0:00:18.2]} 38. Qg8+ {[%clk 0:01:01.7]} 38... Qf7 {[%clk
0:00:14.5]} 39. Qxc8+ {[%clk 0:01:02.4]} 39... Qd7 {[%clk 0:00:15.7]} 40. Qxd7+
{[%clk 0:00:59.7]} 40... Kxd7 {[%clk 0:00:16.5]} 41. Rd1 {[%clk 0:01:01.6]} 1-0

[Event "*** Titled Tuesday Blitz"]
[Site "Chess.com"]
[Date "2018.04.03"]
[Round "7"]
[White "Alopekos"]
[Black "amatatanav"]
[Result "1-0"]
[WhiteElo "2339"]
[BlackElo "2386"]
[TimeControl "180+2"]
[EndTime "14:32:00 PDT"]
[Termination "Alopekos won by checkmate"]

1. e4 {[%clk 0:03:01.7]} 1... c5 {[%clk 0:03:00.8]} 2. Nf3 {[%clk 0:03:02.3]}
2... Nc6 {[%clk 0:03:02.1]} 3. Nc3 {[%clk 0:03:02.8]} 3... g6 {[%clk 0:03:02.4]}
4. d4 {[%clk 0:03:03.7]} 4... cxd4 {[%clk 0:03:04]} 5. Nxd4 {[%clk 0:03:05.5]}
5... Bg7 {[%clk 0:03:05.6]} 6. Nxc6 {[%clk 0:03:03.5]} 6... bxc6 {[%clk
0:03:06.2]} 7. Bc4 {[%clk 0:03:05.4]} 7... Qc7 {[%clk 0:03:04.4]} 8. O-O {[%clk
0:02:58.4]} 8... Nf6 {[%clk 0:03:05.5]} 9. Re1 {[%clk 0:02:02.2]} 9... d6 {[%clk
0:03:02.9]} 10. Bf4 {[%clk 0:02:02.9]} 10... Nd7 {[%clk 0:02:53.7]} 11. Qd2
{[%clk 0:01:43.7]} 11... O-O {[%clk 0:02:34.7]} 12. Bh6 {[%clk 0:01:43.8]} 12...
a5 {[%clk 0:02:25.1]} 13. a4 {[%clk 0:01:35.4]} 13... Ba6 {[%clk 0:02:14.4]} 14.
Ba2 {[%clk 0:01:13.9]} 14... Rab8 {[%clk 0:02:09.4]} 15. Rab1 {[%clk 0:01:13.8]}
15... Rb4 {[%clk 0:01:46.4]} 16. h4 {[%clk 0:01:06.9]} 16... Rfb8 {[%clk
0:01:39.2]} 17. h5 {[%clk 0:00:55.3]} 17... Bf6 {[%clk 0:00:38]} 18. hxg6 {[%clk
0:00:55.7]} 18... hxg6 {[%clk 0:00:39]} 19. Bb3 {[%clk 0:00:31]} 19... Bc4
{[%clk 0:00:36.3]} 20. Bxc4 {[%clk 0:00:31.3]} 20... Rxc4 {[%clk 0:00:38.2]} 21.
Re3 {[%clk 0:00:31.7]} 21... Bxc3 {[%clk 0:00:27.7]} 22. Rxc3 {[%clk 0:00:31.9]}
22... Rxe4 {[%clk 0:00:28.9]} 23. Rh3 {[%clk 0:00:29.2]} 23... Qb6 {[%clk
0:00:17.2]} 24. Be3 {[%clk 0:00:10.8]} 24... Qb4 {[%clk 0:00:16.7]} 25. c3
{[%clk 0:00:12]} 25... Qc4 {[%clk 0:00:16.6]} 26. Bd4 {[%clk 0:00:12.6]} 26...
e5 {[%clk 0:00:17.5]} 27. Qh6 {[%clk 0:00:13.3]} 27... f5 {[%clk 0:00:06.9]} 28.
Qh7+ {[%clk 0:00:12.9]} 28... Kf8 {[%clk 0:00:08]} 29. Qxd7 {[%clk 0:00:14.5]}
29... Qg8 {[%clk 0:00:05.2]} 30. Qxd6+ {[%clk 0:00:14.2]} 30... Kf7 {[%clk
0:00:06]} 31. Bxe5 {[%clk 0:00:12.9]} 31... Re8 {[%clk 0:00:06.7]} 32. Qf6#
{[%clk 0:00:13.5]} 1-0